bitfinex/quotes_ETHUSD_20220212
["timestamp","ask_amount","ask_price","bid_price","bid_amount"]
[1644632608219,0.64632779,2954.6,2954.3,1.4389]
[1644632608419,0.64632779,2954.6,2954.3,0.59249]
[1644632608619,0.65459287,2954.6,2954.3,0.59249]
[1644632609022,0.64632779,2954.5,2954.3,0.59249]
[1644632609223,0.65459287,2954.6,2954.3,0.11583989]
[1644632609421,0.64632779,2954.6,2954.3,0.11583989]
[1644632609621,0.65459284,2954.6,2954.3,0.11583989]
[1644632610221,0.65459284,2954.6,2954.3,0.96224989]
[1644632610666,0.64632779,2954.6,2954.3,0.96224989]
[1644632610865,0.65459287,2954.6,2954.3,0.96224989]
[1644632611871,1.76297196,2954.7,2954.3,0.96224989]
[1644632612068,0.00826508,2954.6,2954.3,0.96224989]
[1644632613170,1.76297196,2954.7,2954.3,0.11583989]
[1644632613372,0.00826508,2954.6,2954.4,0.84638]
[1644632613570,1.72123704,2954.7,2954.3,0.11583989]
[1644632614521,1.72123704,2954.7,2954.3,0.11826356]
[1644632614919,1.72123704,2954.7,2954.3,0.00242367]
[1644632615120,0.64632779,2954.4,2954.3,0.00242367]
[1644632615321,1.93727403,2954.7,2954.3,0.00242367]
[1644632615322,0.64632779,2954.6,2954.3,0.00242367]
[1644632615521,0.64632779,2954.6,2954.2,0.4898706]
[1644632615723,0.64632779,2954.5,2954.2,0.49229432]
[1644632616621,0.64632779,2954.5,2954.2,0.4898706]
[1644632616822,0.64632779,2954.5,2954.2,0.49759062]
[1644632617424,0.64632779,2954.4,2954.2,0.49759062]
[1644632617625,0.64632779,2954.5,2954.2,0.49759062]
[1644632617824,0.64632779,2954.5,2954.2,0.4898706]
[1644632618069,0.64632779,2954.4,2954.2,0.49759066]
[1644632618467,1.94499253,2954.7,2954.2,0.49759066]
[1644632618468,0.64632779,2954.5,2954.2,0.49759066]
[1644632618967,0.64632779,2954.5,2954.2,0.4898706]
[1644632619267,0.64632779,2954.4,2954.2,0.49762727]
[1644632619467,0.64632779,2954.4,2954.3,0.85890682]
[1644632620469,0.64632779,2954.4,2954.3,0.80890682]
[1644632622226,0.64741608,2954.4,2954.3,0.80890682]
[1644632622422,0.86236478,2954.6,2954.3,0.80890682]
[1644632623024,0.64731299,2954.4,2954.3,0.80890682]
[1644632623827,4.24071774,2954.6,2954.2,0.49282819]
[1644632623828,0.86236478,2954.6,2954.2,0.49282819]
[1644632624025,0.64731713,2954.3,2954.2,0.50058238]
[1644632624224,1.08266201,2954.7,2954.2,0.50058238]
[1644632624225,0.86236478,2954.4,2954.2,0.01158238]
[1644632624426,3.43714829,2954.3,2954.2,0.00775419]
[1644632624625,0.86236478,2954.4,2954.2,0.00775419]
[1644632625024,0.86236478,2954.4,2953.8,0.00382819]
[1644632625325,0.98763132,2953.9,2953.8,0.00382819]
[1644632626568,0.98763132,2953.9,2953.8,0.17292819]
[1644632626970,0.64699235,2954.3,2953.8,0.17292819]
[1644632627570,0.64699235,2954.3,2953.8,1.01946819]
[1644632627771,0.64699235,2954.3,2953.9,0.00775461]
[1644632627972,0.64699235,2954.3,2953.9,0.60032461]
[1644632628173,0.64699235,2954.3,2954.0,0.00382819]
[1644632628372,1.17198569,2954.2,2954.0,0.00382819]
[1644632628971,1.17198569,2954.2,2954.0,0.01158276]
[1644632629815,1.17198569,2954.2,2954.0,0.00382819]
[1644632630019,1.17198569,2954.2,2954.0,0.01158277]
[1644632631014,1.17198569,2954.2,2954.0,0.00382819]
[1644632631415,0.64699235,2954.5,2954.0,0.01158277]
[1644632631614,0.64699235,2954.5,2954.1,0.59255]
[1644632631920,0.64699235,2954.5,2954.1,0.1260346]
[1644632632323,4.14699235,2954.4,2953.7,0.1691]
[1644632632523,0.64699235,2954.1,2953.7,0.1691]
[1644632632720,0.64699235,2954.1,2953.7,0.03102229]
[1644632633070,1.45969158,2954.6,2953.7,0.62364229]
[1644632633071,0.64699235,2954.3,2953.7,0.62364229]
[1644632633270,0.64699235,2954.2,2953.7,0.62364229]
[1644632633467,0.64699235,2954.2,2953.7,0.59262]
[1644632633867,0.64699235,2954.2,2953.9,0.00775466]
[1644632634268,0.95131854,2954.0,2953.9,0.00775466]
[1644632634769,0.95131854,2954.0,2953.7,1.43919]
[1644632634970,0.64699235,2954.2,2953.8,0.0077547]
[1644632635175,0.64699235,2954.2,2954.0,0.84645]
[1644632635369,0.64699235,2954.4,2954.0,0.84645]
[1644632635774,0.64699235,2954.4,2953.9,1.18505]
[1644632636075,0.64699235,2954.4,2954.1,0.00775449]
[1644632636273,0.84928112,2954.2,2954.1,0.00775449]
[1644632636925,0.64699235,2954.4,2954.1,0.00775449]
[1644632637124,0.64699235,2954.4,2954.1,0.59255]
[1644632637323,1.03146478,2954.7,2954.1,0.59255]
[1644632637324,0.82384492,2954.7,2954.1,0.59255]
[1644632637924,0.82384492,2954.7,2954.1,1.439]
[1644632638124,0.82384492,2954.7,2954.1,0.59255]
[1644632638125,0.96199024,2954.4,2954.1,0.59255]
[1644632638526,0.96199024,2954.4,2954.3,0.00775431]
[1644632639524,0.96199024,2954.4,2954.2,0.00382827]
[1644632639725,0.96199024,2954.4,2954.1,0.59255]
[1644632640328,0.82138767,2954.7,2954.1,0.59255]
[1644632640566,0.57132246,2954.6,2954.2,0.85590087]
[1644632640870,0.57132246,2954.6,2954.2,1.70233087]
[1644632641071,0.57132246,2954.5,2954.3,0.8636752]
[1644632641270,0.00777303,2954.7,2954.4,0.85590087]
[1644632641470,0.57128942,2954.6,2954.4,0.85590087]
[1644632642073,0.57128942,2954.6,2954.4,1.70226087]
[1644632642273,0.57128942,2954.6,2954.4,0.84636]
[1644632642676,0.57128942,2954.6,2954.3,0.00777448]
[1644632642877,0.57128942,2954.6,2954.4,0.85621188]
[1644632643274,0.57128942,2954.5,2954.2,1.18494]
[1644632643475,0.57128942,2954.4,2954.3,0.86394634]
[1644632643875,0.57128942,2954.5,2954.3,0.86394634]
[1644632644076,1.82601628,2954.6,2954.3,0.00777439]
[1644632644077,0.57128942,2954.4,2954.3,0.00777439]
[1644632644330,1.21828177,2954.5,2954.2,1.18494]
[1644632644520,0.57128942,2954.4,2954.3,0.00774767]
[1644632645020,1.21828177,2954.4,2954.3,0.00774767]
[1644632645222,0.64699235,2954.4,2954.3,0.00774767]
[1644632645424,0.64699235,2954.4,2954.2,1.18494]
[1644632645825,0.64699235,2954.4,2954.2,1.19268771]
[1644632646423,1.21828177,2954.5,2954.2,1.19268771]
[1644632646624,0.64699235,2954.4,2954.1,0.00382827]
[1644632646824,0.64699235,2954.4,2954.1,0.86023948]
[1644632647029,1.21828177,2954.5,2954.2,0.00382827]
[1644632647228,0.57128942,2954.4,2954.3,0.489]
[1644632647428,0.57128942,2954.4,2954.3,1.34541121]
[1644632647627,0.57128942,2954.4,2954.3,1.64541121]
[1644632647828,0.57128942,2954.6,2954.3,1.64541121]
[1644632648073,0.57122756,2954.5,2954.4,0.85641121]
[1644632648270,0.57122756,2954.5,2954.4,1.34541121]
[1644632648470,0.57122756,2954.5,2954.4,0.489]
[1644632649874,0.57122756,2954.5,2954.2,0.1692]
[1644632650075,0.57122756,2954.5,2954.3,0.85609231]
[1644632651676,0.57122756,2954.5,2954.2,1.45091125]
[1644632651931,0.57122756,2954.5,2954.3,0.85617649]
[1644632652130,0.57122756,2954.5,2954.1,2.12231274]
[1644632652328,0.57122756,2954.5,2954.2,0.8775848]
[1644632652733,0.57122756,2954.4,2954.2,0.8775848]
[1644632653132,0.57122756,2954.3,2954.2,1.4699448]
[1644632653932,0.57122756,2954.3,2954.2,3.1625748]
[1644632656170,0.57122756,2954.3,2954.2,1.4699448]
[1644632663369,0.57122756,2954.3,2954.2,0.59236]
[1644632663571,0.57122756,2954.3,2954.2,1.46990906]
[1644632665674,0.57122756,2954.3,2954.2,1.47373474]
[1644632666077,0.57122756,2954.3,2954.2,0.59618568]
[1644632666474,0.57122756,2954.3,2954.2,1.47391692]
[1644632666675,0.57122756,2954.3,2954.2,0.59618568]
[1644632667929,1.21821991,2954.3,2954.2,0.59618568]
[1644632668129,1.21821991,2954.3,2954.2,0.00382568]
[1644632668329,1.21772873,2954.3,2954.2,0.00382568]
[1644632668832,0.57122756,2954.3,2954.2,0.00382568]
[1644632669032,1.21768471,2954.3,2954.2,0.00382568]
[1644632671165,0.57122756,2954.3,2954.2,0.00382568]
[1644632671372,1.21768471,2954.3,2954.2,0.00382568]
[1644632671571,0.57122756,2954.3,2954.2,0.00382568]
[1644632671972,1.21768471,2954.3,2954.2,0.00382568]
[1644632672170,1.21768471,2954.3,2954.1,0.007678]
[1644632672370,5.56243446,2954.2,2954.1,0.007678]
[1644632672669,1.50226123,2954.2,2954.1,0.007678]
[1644632673069,1.50226123,2954.2,2953.7,1.86234]
[1644632673272,1.2177457,2954.1,2953.8,0.91606148]
[1644632673471,0.93103367,2954.2,2954.0,0.00767797]
[1644632673472,1.57755181,2954.2,2954.0,0.00767797]
[1644632673672,0.51153526,2954.1,2954.0,0.00767797]
[1644632673876,1.1580534,2954.1,2954.0,0.00767797]
[1644632674327,0.51153526,2954.1,2953.7,1.0158]
[1644632674519,0.51153526,2954.1,2953.8,0.91587537]
[1644632674720,0.51153526,2954.1,2953.9,0.00715194]
[1644632674920,1.1580534,2954.1,2953.9,0.00715194]
[1644632675527,1.1580534,2954.1,2953.6,0.1691]
[1644632675726,1.1580534,2954.0,2953.9,0.00715199]
[1644632675927,0.64651814,2954.0,2953.9,0.00715199]
[1644632676728,1.10552447,2953.7,2953.6,0.1691]
[1644632676928,1.10552447,2953.7,2953.6,1.01565]
[1644632678574,3.45,2953.6,2953.1,0.02868404]
[1644632678775,4.14651814,2953.5,2953.1,0.02868404]
[1644632678973,0.1693,2953.4,2953.1,0.02868404]
[1644632679175,0.1693,2953.4,2952.4,1.2323]
[1644632679176,0.81581814,2953.4,2952.4,1.2323]
[1644632679373,1.16802733,2952.6,2952.4,1.2323]
[1644632679574,1.16802733,2952.6,2952.2,3.5791]
[1644632680074,4.8432,2953.3,2952.2,3.5791]
[1644632680273,1.3432,2953.3,2952.2,3.5791]
[1644632680874,4.78864014,2953.3,2952.5,0.8469]
[1644632681075,4.78864014,2953.3,2952.5,1.35505]
[1644632681076,0.97031247,2953.0,2952.5,1.35505]
[1644632681834,3.52931778,2952.9,2952.6,0.0082625]
[1644632682027,0.97031247,2953.0,2952.6,0.0082625]
[1644632682226,3.45235723,2952.9,2952.6,0.0082625]
[1644632682525,0.97031247,2953.0,2952.6,0.0082625]
[1644632682725,0.97031247,2953.0,2952.3,2.25139]
[1644632682726,0.97031247,2953.0,2952.5,0.50816]
[1644632683129,0.97031247,2953.0,2952.6,0.0082625]
[1644632684025,0.97031247,2953.0,2952.6,0.84687]
[1644632684226,0.97031247,2953.0,2952.7,0.00826245]
[1644632685226,3.51650943,2952.9,2952.5,0.50816]
[1644632685427,0.97031247,2953.0,2952.7,0.0082624]
[1644632685671,1.85,2952.9,2952.5,0.4664224]
[1644632685874,0.97031247,2953.0,2952.5,1.3133024]
[1644632686572,0.97031247,2953.0,2952.5,0.50816]
[1644632686573,3.41987179,2952.9,2952.5,0.50816]
[1644632686978,0.97031247,2953.0,2952.5,0.50816]
[1644632687176,0.97031247,2953.0,2952.3,2.71002]
[1644632687575,0.97031247,2953.0,2952.4,0.00381891]
[1644632687775,0.97031247,2953.0,2952.5,0.50816]
[1644632687975,0.97031247,2953.0,2952.6,0.00381891]
[1644632688575,0.97031247,2953.0,2952.4,0.00381891]
[1644632689176,3.45105097,2952.9,2952.4,0.00381891]
[1644632689430,3.45050446,2952.9,2952.4,0.00381891]
[1644632690030,1.14970589,2952.5,2952.4,0.00381891]
[1644632690231,4.02139163,2953.2,2952.3,2.71002]
[1644632690431,4.02139163,2953.2,2952.4,0.00381891]
[1644632690635,4.32139163,2953.2,2952.4,0.00381891]
[1644632691032,4.32139163,2953.2,2952.4,0.51197891]
[1644632691232,1.06236211,2952.9,2952.4,0.51197891]
[1644632691432,3.52935835,2952.8,2952.6,0.00826273]
[1644632691732,1.06236211,2952.9,2952.6,0.00826273]
[1644632692332,1.06236211,2952.9,2952.4,0.51197891]
[1644632692732,1.06236211,2952.9,2952.6,0.00826264]
[1644632693575,1.06236211,2952.9,2952.2,0.84698]
[1644632693775,1.06236211,2952.9,2952.6,0.00826264]
[1644632694475,1.06236211,2952.9,2952.6,0.51643264]
[1644632694679,1.06236211,2952.9,2952.7,0.00381891]
[1644632697825,1.06236211,2952.9,2952.6,0.0076401]
[1644632698424,1.06236211,2952.9,2952.5,0.00381891]
[1644632698625,1.06236211,2952.9,2952.6,0.00764002]
[1644632699628,1.06236211,2952.9,2952.5,0.00381891]
[1644632699830,1.06236211,2952.9,2952.6,0.00768185]
[1644632700028,0.55414819,2952.8,2952.6,0.00768185]
[1644632700228,1.06236211,2952.9,2952.6,0.00768185]
[1644632700876,1.4693,2953.2,2952.5,0.00381891]
[1644632701080,0.55408955,2953.1,2952.6,0.00768185]
[1644632701984,0.55408955,2953.1,2952.6,1.11476198]
[1644632702189,0.55408955,2953.1,2952.7,0.00381891]
[1644632702583,0.55408955,2953.1,2952.6,0.00768201]
[1644632703187,0.55408955,2953.1,2952.3,0.00381891]
[1644632703385,0.55408955,2953.1,2952.6,0.0076792]
[1644632704423,3.44360465,2953.0,2952.5,0.00381891]
[1644632704624,0.55408955,2952.9,2952.6,0.0076792]
[1644632704829,0.55408955,2952.9,2952.6,0.01149811]
[1644632705027,2.5583495,2953.2,2952.6,0.01149811]
[1644632705226,0.55448773,2953.1,2952.6,0.01149811]
[1644632705625,0.55448773,2953.1,2952.6,0.00381891]
[1644632706025,0.55448773,2953.1,2952.6,0.01149811]
[1644632706827,0.55448773,2953.1,2952.6,0.00381891]
[1644632707033,0.55448773,2953.1,2952.6,0.01149829]
[1644632707633,0.55448773,2953.1,2953.0,0.96654931]
[1644632707831,0.55448773,2953.1,2952.6,0.01149829]
[1644632707832,0.74992636,2952.8,2952.6,0.01149829]
[1644632708074,0.74992636,2952.8,2952.6,0.00381891]
[1644632708272,0.74992636,2952.8,2952.6,0.01149861]
[1644632708674,0.74880927,2952.8,2952.6,0.01149861]
[1644632708876,0.74880927,2952.8,2952.7,0.97724425]
[1644632710576,0.75280927,2952.8,2952.7,0.97724425]
[1644632710777,1.29900993,2952.8,2952.7,0.97724425]
[1644632710977,0.75280927,2952.8,2952.7,0.97724425]
[1644632711178,0.75280927,2952.8,2952.6,0.01149811]
[1644632711577,0.75280927,2952.8,2952.6,0.00381891]
[1644632711828,0.75280927,2952.8,2952.6,0.8892027]
[1644632712026,0.75280927,2952.8,2952.7,0.87770467]
[1644632712225,1.29935909,2952.8,2952.7,1.8977615]
[1644632712627,1.29935909,2952.8,2952.7,1.02008686]
[1644632713228,1.29935909,2952.8,2952.7,1.89800987]
[1644632714735,1.18157729,2953.3,2952.8,3.45]
[1644632714736,0.00767729,2953.3,2952.8,3.45]
[1644632714931,0.00767729,2953.3,2952.8,3.45381891]
[1644632715129,0.00767729,2953.3,2953.0,2.53944]
[1644632715332,0.64651814,2954.0,2953.1,0.49281891]
[1644632715575,0.64651814,2954.0,2952.7,1.31626795]
[1644632715576,0.00767777,2953.3,2953.2,0.49281891]
[1644632715872,0.00767777,2953.3,2953.2,0.489]
[1644632716073,0.00767777,2953.3,2953.2,0.49281891]
[1644632716473,0.64651814,2953.5,2953.2,0.49281891]
[1644632716674,0.00741872,2953.4,2953.2,0.49281891]
[1644632716878,0.00741872,2953.4,2953.2,0.00381891]
[1644632716879,0.65393686,2953.4,2953.2,0.00381891]
[1644632717280,0.64651814,2953.3,2953.2,0.00381891]
[1644632717479,0.64651814,2953.3,2953.1,0.42337]
[1644632717882,0.0074187,2953.4,2953.1,0.42337]
[1644632718081,0.0074187,2953.4,2953.2,0.00381891]
[1644632718280,0.60393684,2953.5,2953.2,0.00381891]
[1644632718480,0.001,2953.6,2953.2,0.00381891]
[1644632718681,0.001,2953.6,2953.3,0.42335]
[1644632719180,0.8590433,2953.7,2953.3,0.42335]
[1644632719181,0.8600433,2953.7,2953.3,0.42335]
[1644632719429,0.1691,2953.6,2953.2,0.00381891]
[1644632719631,4.51464353,2953.6,2952.9,0.00381891]
[1644632719828,1.14903445,2953.2,2952.9,0.00381891]
[1644632720229,1.14903445,2953.2,2952.9,0.00626277]
[1644632720928,2.22736478,2953.7,2952.9,0.00626277]
[1644632721127,4.29658629,2953.6,2953.1,0.42338]
[1644632721330,0.86236478,2953.6,2953.2,0.00381891]
[1644632721529,0.00775213,2953.5,2953.2,0.00381891]
[1644632722232,1.10038976,2953.3,2953.2,0.00381891]
[1644632722432,0.86236478,2953.6,2953.2,0.00381891]
[1644632722632,0.00775267,2953.5,2953.2,0.00381891]
[1644632722832,0.00775267,2953.5,2953.2,0.85051891]
[1644632723093,0.00775267,2953.5,2953.3,0.42334]
[1644632723688,0.86236478,2953.8,2953.4,0.84664]
[1644632723689,1.08885655,2953.7,2953.4,0.84664]
[1644632723888,0.86236478,2953.8,2953.4,0.84664]
[1644632723889,0.00774972,2953.5,2953.4,0.84664]
[1644632724490,0.00774972,2953.5,2953.3,0.42334]
[1644632724889,0.86236478,2953.8,2953.3,0.42334]
[1644632725089,0.00774972,2953.5,2953.3,0.42334]
[1644632725490,0.00774972,2953.5,2953.4,1.06643422]
[1644632725896,0.00774972,2953.5,2953.4,2.15543422]
[1644632726093,0.86236478,2954.2,2953.5,2.11628]
[1644632726293,0.001,2954.3,2953.5,2.11628]
[1644632726294,0.00774968,2953.6,2953.5,2.11628]
[1644632726829,0.00774968,2953.6,2953.5,1.69302]
[1644632727028,0.00774968,2953.6,2953.5,2.53953]
[1644632727228,0.001,2954.1,2953.4,2.53958]
[1644632727426,0.00774977,2953.7,2953.5,0.489]
[1644632727627,0.00774977,2953.7,2953.3,0.489]
[1644632727826,0.00774977,2953.7,2953.2,1.13]
[1644632728427,0.64618384,2953.8,2953.2,1.13]
[1644632728628,0.00774986,2953.6,2953.2,1.13]
[1644632728828,0.00774986,2953.6,2953.3,0.42333]
[1644632729228,0.00774986,2953.6,2953.3,1.26998]
[1644632729430,1.13547567,2953.6,2953.3,1.26998]
[1644632729630,1.12772581,2953.6,2953.3,0.38257381]
[1644632729929,1.13547567,2953.6,2953.3,0.38257381]
[1644632730587,1.13547567,2953.6,2953.3,0.80590381]
[1644632730793,1.12772581,2953.6,2953.3,0.80590381]
[1644632730992,1.13547564,2953.6,2953.3,0.80590381]
[1644632731588,0.00774983,2953.6,2953.3,0.80590381]
[1644632731994,0.64618384,2953.9,2953.3,0.80590381]
[1644632732193,0.00774983,2953.6,2953.3,0.80590381]
[1644632732394,0.00774983,2953.6,2953.3,1.65250381]
[1644632732994,0.00774983,2953.6,2953.4,1.09419364]
[1644632733193,0.64618384,2953.9,2953.3,1.29490381]
[1644632733496,0.00774983,2953.6,2953.3,0.489]
[1644632734521,0.81628384,2954.0,2953.3,0.489]
[1644632734822,0.81628384,2954.0,2953.4,0.94065243]
[1644632734823,0.00774984,2953.6,2953.4,0.94065243]
[1644632735225,0.48477965,2953.5,2953.4,0.94065243]
[1644632735927,0.00774984,2953.6,2953.4,0.94065243]
[1644632736134,0.48477965,2953.5,2953.4,0.94065243]
[1644632736731,0.48477965,2953.5,2953.4,1.78726243]
[1644632736933,0.001,2954.0,2953.5,0.4233]
[1644632737132,0.00774984,2953.6,2953.5,0.4233]
[1644632737532,0.49247915,2953.6,2953.5,1.85268903]
[1644632738076,0.48472931,2953.6,2953.5,1.85268903]
[1644632738975,0.48472931,2953.6,2953.5,2.69925903]
[1644632739376,0.48572931,2954.1,2953.5,2.69925903]
[1644632739576,0.00774975,2953.7,2953.6,0.94038903]
[1644632739776,0.00774975,2953.7,2953.6,1.42938903]
[1644632740377,0.48472931,2953.7,2953.6,1.42938903]
[1644632741928,0.00774968,2953.8,2953.6,1.42938903]
[1644632742230,0.48472931,2953.7,2953.6,1.42938903]
[1644632742428,0.48472931,2953.7,2953.6,1.42843369]
[1644632745031,0.48472931,2953.7,2953.6,0.489]
[1644632745431,0.00774967,2953.8,2953.6,0.489]
[1644632745672,0.48472931,2953.7,2953.6,0.489]
[1644632746676,0.00774967,2953.8,2953.6,0.489]
[1644632746879,0.48472931,2953.7,2953.6,0.489]
[1644632747077,0.48472931,2953.7,2953.6,1.42849237]
[1644632747877,0.001,2954.1,2953.6,1.42849237]
[1644632747878,0.00774967,2953.8,2953.6,1.42849237]
[1644632748079,0.48472931,2953.7,2953.6,0.489]
[1644632748478,0.48472931,2953.7,2953.6,1.42854408]
[1644632749081,0.00774967,2953.8,2953.6,1.42854408]
[1644632749343,0.48472931,2953.7,2953.6,0.489]
[1644632749525,0.48472931,2953.7,2953.6,1.42856867]
[1644632750327,0.001,2954.1,2953.6,1.42856867]
[1644632750328,0.00774967,2953.8,2953.6,1.42856867]
[1644632750527,0.48472931,2953.7,2953.6,0.489]
[1644632750728,0.48472931,2953.7,2953.6,1.42877299]
[1644632751529,0.00774967,2953.8,2953.6,1.42877299]
[1644632751831,0.48472931,2953.7,2953.6,0.489]
[1644632752632,0.00774968,2953.8,2953.6,1.4286405]
[1644632753076,0.48472931,2953.7,2953.6,0.489]
[1644632753274,0.38472931,2953.7,2953.6,1.42861322]
[1644632753874,0.00774968,2953.8,2953.6,1.42861322]
[1644632754075,0.00774968,2953.8,2953.6,0.489]
[1644632754676,0.85635949,2953.7,2953.6,0.489]
[1644632754979,0.85635949,2953.7,2953.5,0.57473767]
[1644632755777,0.00774964,2953.8,2953.5,0.57473767]
[1644632755978,0.64618384,2954.0,2953.5,0.57473767]
[1644632756177,0.00774972,2953.7,2953.5,0.57473767]
[1644632756578,0.00774972,2953.7,2953.5,0.99803767]
[1644632757232,0.64618384,2954.0,2953.5,0.99803767]
[1644632757233,1.04297412,2953.9,2953.5,0.99803767]
[1644632757427,0.00774972,2953.7,2953.5,0.99803767]
[1644632758428,0.64618384,2954.0,2953.5,0.99803767]
[1644632758630,0.00774972,2953.7,2953.5,0.99803767]
[1644632759532,0.64618384,2954.0,2953.5,0.99803767]
[1644632759732,0.98522607,2954.0,2953.5,0.99803767]
[1644632759930,0.00774973,2953.7,2953.5,0.99803767]
[1644632760232,0.00774973,2953.7,2953.3,1.9006734]
[1644632760233,0.00774973,2953.7,2953.3,0.489]
[1644632760880,1.63240991,2954.0,2953.3,0.489]
[1644632760881,1.63140991,2954.0,2953.3,0.489]
[1644632761080,0.00774981,2953.6,2953.3,0.489]
[1644632761278,0.00774981,2953.6,2953.3,2.0559199]
[1644632761679,0.00774981,2953.6,2953.3,0.91235]
[1644632761883,0.00774981,2953.6,2953.1,0.00381891]
[1644632762085,0.64618384,2953.6,2953.1,0.00381891]
[1644632762281,0.64618384,2953.5,2953.1,0.00381891]
[1644632762981,0.00774986,2953.6,2953.1,0.00381891]
[1644632762982,0.6539337,2953.6,2953.1,0.00381891]
[1644632763182,1.08968339,2953.4,2953.1,0.00381891]
[1644632769375,0.64618384,2953.5,2953.1,0.00381891]
[1644632769376,0.64618384,2953.5,2953.1,1.27392891]
[1644632769577,0.00530917,2953.5,2953.1,0.84674]
[1644632770479,0.89887838,2953.5,2953.1,0.84674]
[1644632770679,0.90662812,2953.5,2953.1,0.84674]
[1644632771578,0.89887838,2953.5,2953.1,0.84674]
[1644632771827,0.90662812,2953.5,2953.1,0.84674]
[1644632772833,0.89887838,2953.5,2953.1,0.84674]
[1644632773033,0.90662812,2953.5,2953.1,0.84674]
[1644632773232,0.90662812,2953.5,2953.0,0.00381891]
[1644632773435,0.47457719,2953.4,2953.0,0.00381891]
[1644632773833,0.47457719,2953.4,2953.0,0.95538456]
[1644632774233,0.47457719,2953.4,2953.1,0.95156565]
[1644632775237,0.625165,2953.0,2952.8,0.489]
[1644632775433,0.47454056,2952.9,2952.7,2.5403]
[1644632775673,0.47454056,2952.9,2952.8,0.95153192]
[1644632776475,0.47454056,2952.9,2952.8,0.90153192]
[1644632777077,0.47454056,2952.9,2952.7,1.70145265]
[1644632777677,0.47454056,2952.9,2952.7,1.69354]
[1644632777882,0.47454056,2952.9,2952.7,1.70130058]
[1644632778879,0.47454056,2952.9,2952.7,1.69354]
[1644632779080,0.47454056,2952.9,2952.7,1.70130058]
[1644632780125,0.47454056,2952.9,2952.7,1.69354]
[1644632780326,0.47454056,2952.9,2952.7,1.70130058]
[1644632781227,0.47454056,2952.9,2952.7,1.69354]
[1644632781427,0.47454056,2952.9,2952.7,1.70130377]
[1644632782531,0.47454056,2952.9,2952.7,1.69354]
[1644632782732,0.47454056,2952.9,2952.7,1.70130377]
[1644632783573,0.47454056,2952.9,2952.7,1.69354]
[1644632783973,0.47454056,2952.9,2952.7,1.70130377]
[1644632784875,0.47454056,2952.9,2952.5,1.98502]
[1644632784876,3.4797894,2952.8,2952.5,1.1382]
[1644632785077,3.4797894,2952.8,2952.7,0.00776346]
[1644632785375,1.61199093,2953.0,2952.7,0.00776346]
[1644632786076,1.61199093,2953.0,2952.4,1.8311152]
[1644632786275,1.61199093,2953.0,2952.7,0.00776342]
[1644632787330,1.61199093,2953.0,2952.5,0.42346]
[1644632787532,1.61199093,2953.0,2952.7,0.00776342]
[1644632788533,1.61199093,2953.0,2952.5,0.42346]
[1644632788732,1.61199093,2953.0,2952.7,0.00776345]
[1644632790776,1.61199093,2953.0,2952.6,0.8506928]
[1644632791177,1.61199093,2953.0,2952.7,0.00776345]
[1644632791979,1.61199093,2953.0,2952.6,0.8506928]
[1644632792380,1.61199093,2953.0,2952.7,0.00776345]
[1644632793180,1.61199093,2953.0,2952.6,0.8506928]
[1644632793584,1.61199093,2953.0,2952.7,0.00776345]
[1644632794423,1.61199093,2953.0,2952.6,0.8506928]
[1644632794825,1.61199093,2953.0,2952.7,0.00776345]
[1644632795026,1.61199093,2953.0,2952.7,0.43119345]
[1644632795423,1.61199093,2953.0,2952.7,0.00776345]
[1644632795624,1.61199093,2953.0,2952.6,0.8456462]
[1644632795825,1.61199093,2953.0,2952.7,0.00776345]
[1644632796425,0.46641681,2952.9,2952.7,0.00776345]
[1644632796826,3.87736559,2952.9,2952.4,0.8507428]
[1644632797029,1.61199093,2953.0,2952.4,0.8507428]
[1644632797030,0.46641681,2952.8,2952.7,0.00776349]
[1644632797431,0.46641681,2952.9,2952.7,0.96707808]
[1644632797631,0.46641681,2952.9,2952.7,0.00776349]
[1644632798074,0.46641681,2952.9,2952.6,0.0038028]
[1644632798276,0.46641681,2952.9,2952.7,0.00776349]
[1644632799377,0.46641681,2952.9,2952.6,0.0038028]
[1644632803036,0.46641681,2952.9,2952.6,0.01205461]
[1644632803236,0.46641681,2952.9,2952.7,0.95915132]
[1644632804037,3.86553178,2952.9,2952.7,0.95915132]
[1644632804246,0.46641681,2952.8,2952.7,0.00825176]
[1644632804638,0.46641681,2952.8,2952.7,0.96860642]
[1644632804838,0.46641681,2952.9,2952.7,0.96860642]
[1644632805137,0.46641681,2952.8,2952.7,0.00825176]
[1644632805338,3.93275189,2952.9,2952.7,0.96035996]
[1644632805612,3.93275189,2952.9,2952.2,2.54073]
[1644632805613,3.45,2952.7,2952.2,0.033012]
[1644632805811,0.64693217,2952.5,2952.2,0.033012]
[1644632806009,0.46641681,2952.6,2952.2,0.033012]
[1644632806010,0.64693217,2952.4,2952.2,0.033012]
[1644632806210,0.64693217,2952.5,2952.2,0.033012]
[1644632806409,0.64693217,2952.5,2951.5,1.55588]
[1644632806610,1.03736004,2952.4,2951.5,1.55588]
[1644632806815,0.64693217,2952.3,2951.4,0.75568017]
[1644632807013,0.64693217,2952.2,2951.4,0.25]
[1644632807213,0.64693217,2952.2,2951.2,3.1755]
[1644632807415,0.64693217,2952.2,2951.4,0.3389]
[1644632807813,0.64693217,2952.2,2951.5,0.8472]
[1644632807814,0.90998542,2951.6,2951.5,0.8472]
[1644632808716,0.90998542,2951.6,2951.2,5.54766]
[1644632808915,0.90998542,2951.6,2951.2,2.37216]
[1644632809117,0.90998542,2951.6,2951.4,0.008253]
[1644632809535,0.90998542,2951.6,2951.4,0.855503]
[1644632810140,3.46904761,2952.2,2951.4,0.84725]
[1644632810436,0.1693,2952.1,2951.4,0.85550305]
[1644632811037,0.89492726,2951.6,2951.4,0.85550305]
[1644632811238,0.89492726,2951.6,2951.4,0.84725]
[1644632812041,0.89492726,2951.6,2951.2,2.40517618]
[1644632812442,0.89492726,2951.6,2951.2,2.37216]
[1644632812643,0.89492726,2951.6,2951.3,0.00825315]
[1644632813184,1.19492726,2951.6,2951.3,0.00825315]
[1644632813581,1.19492726,2951.6,2950.6,1.1266]
[1644632813780,1.15360531,2951.1,2950.6,1.4656]
[1644632813980,0.3,2951.6,2950.9,0.03301737]
[1644632814382,1.1693,2951.7,2950.9,0.03301737]
[1644632814581,3.45,2951.6,2950.5,1.1878]
[1644632814780,3.45,2951.6,2950.7,0.33897]
[1644632814982,3.45,2951.6,2950.7,1.18642]
[1644632815280,1.07625858,2951.3,2950.7,1.18642]
[1644632815781,0.89986053,2951.4,2951.3,0.27685438]
[1644632816183,4.51367677,2951.4,2951.3,0.27685438]
[1644632816582,0.89986053,2951.4,2951.3,0.27685438]
[1644632821984,3.45,2951.3,2951.0,0.00379124]
[1644632822188,3.45,2951.3,2950.6,0.00379124]
[1644632822189,3.57101184,2951.2,2950.6,0.00379124]
[1644632822483,3.57101184,2951.2,2950.8,0.00825447]